[Event "Early-Titled-Tuesday-Blitz-October-17-2023"]
[Site "Chess.com"]
[Date "2023.10.17"]
[Round "11"]
[White "Heinza9"]
[Black "Actuary44"]
[Result "0-1"]
[WhiteElo "2304"]
[BlackElo "2500"]
[TimeControl "180+1"]
[EndTime "10:07:34 PDT"]
[Termination "Actuary44 won by checkmate"]

1. e4 {[%clk 0:03:00.9]} 1... b6 {[%clk 0:02:59]} 2. d4 {[%clk 0:03:00.4]} 2...
Bb7 {[%clk 0:02:59.5]} 3. Nc3 {[%clk 0:03:00.8]} 3... e6 {[%clk 0:03:00.1]} 4.
Nf3 {[%clk 0:02:59.1]} 4... Nf6 {[%clk 0:03:00.6]} 5. Bd3 {[%clk 0:02:58.8]}
5... Bb4 {[%clk 0:03:00.5]} 6. Qe2 {[%clk 0:02:58.4]} 6... d5 {[%clk 0:03:00.3]}
7. exd5 {[%clk 0:02:57.5]} 7... Nxd5 {[%clk 0:02:54.2]} 8. Bd2 {[%clk
0:02:57.5]} 8... Bxc3 {[%clk 0:02:54.4]} 9. bxc3 {[%clk 0:02:57.3]} 9... h6
{[%clk 0:02:53.3]} 10. c4 {[%clk 0:02:56.3]} 10... Nf6 {[%clk 0:02:53.3]} 11.
Bc3 {[%clk 0:02:44.9]} 11... Nbd7 {[%clk 0:02:51.1]} 12. O-O {[%clk 0:02:44]}
12... O-O {[%clk 0:02:51]} 13. Rad1 {[%clk 0:02:42.8]} 13... c5 {[%clk
0:02:46.3]} 14. dxc5 {[%clk 0:02:42.3]} 14... Nxc5 {[%clk 0:02:46.7]} 15. Bh7+
{[%clk 0:02:41.8]} 15... Kxh7 {[%clk 0:02:47.6]} 16. Rxd8 {[%clk 0:02:41.4]}
16... Raxd8 {[%clk 0:02:45.5]} 17. Rd1 {[%clk 0:02:15.9]} 17... Be4 {[%clk
0:02:43.5]} 18. Bxf6 {[%clk 0:02:11.6]} 18... gxf6 {[%clk 0:02:44.4]} 19. h3
{[%clk 0:02:03.2]} 19... Rxd1+ {[%clk 0:02:38.5]} 20. Qxd1 {[%clk 0:02:03.1]}
20... Rg8 {[%clk 0:02:39.3]} 21. Kh2 {[%clk 0:02:01.5]} 21... e5 {[%clk
0:02:29.6]} 22. Qd6 {[%clk 0:01:42.2]} 22... Ne6 {[%clk 0:02:28.4]} 23. Qe7
{[%clk 0:01:36]} 23... Bxf3 {[%clk 0:02:05.9]} 24. gxf3 {[%clk 0:01:35.4]} 24...
Kg6 {[%clk 0:02:06.4]} 25. Qxa7 {[%clk 0:01:32.1]} 25... Nd4 {[%clk 0:02:02.9]}
26. Qxb6 {[%clk 0:01:21.6]} 26... Nxf3+ {[%clk 0:02:02.5]} 27. Kg3 {[%clk
0:01:21.9]} 27... Nd4 {[%clk 0:02:00.4]} 28. f3 {[%clk 0:01:15.4]} 28... Nxc2
{[%clk 0:01:58.9]} 29. c5 {[%clk 0:01:13.4]} 29... Nd4 {[%clk 0:01:57.9]} 30. c6
{[%clk 0:01:11.3]} 30... Rc8 {[%clk 0:01:56.2]} 31. c7 {[%clk 0:01:10.9]} 31...
Ne6 {[%clk 0:01:50.8]} 32. a4 {[%clk 0:01:09.8]} 32... Rxc7 {[%clk 0:01:43.8]}
33. a5 {[%clk 0:01:09.9]} 33... Rc2 {[%clk 0:01:41.5]} 34. Qb1 {[%clk
0:00:49.9]} 34... Nd4 {[%clk 0:01:41.9]} 35. a6 {[%clk 0:00:48.6]} 35... Nf5+
{[%clk 0:01:36.8]} 36. Kg4 {[%clk 0:00:39]} 36... h5# {[%clk 0:01:37.7]} 0-1

[Event "Early-Titled-Tuesday-Blitz-October-17-2023"]
[Site "Chess.com"]
[Date "2023.10.17"]
[Round "11"]
[White "rikchessmx"]
[Black "Balla_Tamas"]
[Result "1-0"]
[WhiteElo "2264"]
[BlackElo "2360"]
[TimeControl "180+1"]
[EndTime "10:07:49 PDT"]
[Termination "rikchessmx won by resignation"]

1. e4 {[%clk 0:03:00.9]} 1... c5 {[%clk 0:02:59.1]} 2. Nf3 {[%clk 0:02:29.4]}
2... Nc6 {[%clk 0:02:58]} 3. d4 {[%clk 0:02:30.3]} 3... cxd4 {[%clk 0:02:55.8]}
4. Nxd4 {[%clk 0:02:31.2]} 4... e5 {[%clk 0:02:56.3]} 5. Nxc6 {[%clk 0:02:31.3]}
5... bxc6 {[%clk 0:02:55.3]} 6. Bc4 {[%clk 0:02:28.5]} 6... Nf6 {[%clk
0:02:53.5]} 7. Qf3 {[%clk 0:02:29]} 7... Be7 {[%clk 0:02:43.5]} 8. O-O {[%clk
0:02:28.3]} 8... O-O {[%clk 0:02:40.4]} 9. Nc3 {[%clk 0:02:27.6]} 9... Bb7
{[%clk 0:02:26.3]} 10. Rd1 {[%clk 0:02:26.8]} 10... d6 {[%clk 0:02:23.6]} 11.
Bb3 {[%clk 0:02:24.7]} 11... Qc7 {[%clk 0:02:13.2]} 12. Bg5 {[%clk 0:01:52]}
12... h6 {[%clk 0:02:12]} 13. Bh4 {[%clk 0:01:51.2]} 13... Rad8 {[%clk
0:01:38.1]} 14. Rd2 {[%clk 0:01:46.8]} 14... Rfe8 {[%clk 0:01:39]} 15. Rad1
{[%clk 0:01:46]} 15... d5 {[%clk 0:01:37.9]} 16. Bxf6 {[%clk 0:01:36.7]} 16...
Bxf6 {[%clk 0:01:36.2]} 17. exd5 {[%clk 0:01:36.5]} 17... cxd5 {[%clk
0:01:32.2]} 18. Bxd5 {[%clk 0:01:35.9]} 18... e4 {[%clk 0:01:30.4]} 19. Qg3
{[%clk 0:01:20.3]} 19... Bxc3 {[%clk 0:01:28.2]} 20. Qxc3 {[%clk 0:01:14.3]}
20... Qb6 {[%clk 0:01:25.9]} 21. Bxb7 {[%clk 0:01:11]} 21... Rxd2 {[%clk
0:01:25.7]} 22. Rxd2 {[%clk 0:01:05.7]} 22... Qxb7 {[%clk 0:01:25.6]} 23. b3
{[%clk 0:01:03.2]} 23... Qb6 {[%clk 0:01:18.5]} 24. Qd4 {[%clk 0:01:02]} 24...
Qa6 {[%clk 0:01:15.9]} 25. a4 {[%clk 0:00:58.6]} 25... Qg6 {[%clk 0:01:11.3]}
26. Qxa7 {[%clk 0:00:48]} 26... e3 {[%clk 0:01:07.8]} 27. fxe3 {[%clk
0:00:47.3]} 27... Qf6 {[%clk 0:01:06.4]} 28. Qd4 {[%clk 0:00:45.2]} 28... Qh4
{[%clk 0:01:03.2]} 29. Qxh4 {[%clk 0:00:42]} 1-0

[Event "Early-Titled-Tuesday-Blitz-October-17-2023"]
[Site "Chess.com"]
[Date "2023.10.17"]
[Round "11"]
[White "CuattroPrincesses"]
[Black "vishwa_vijeta"]
[Result "0-1"]
[WhiteElo "2284"]
[BlackElo "2499"]
[TimeControl "180+1"]
[EndTime "10:08:06 PDT"]
[Termination "vishwa_vijeta won by checkmate"]

1. e4 {[%clk 0:03:00.9]} 1... c5 {[%clk 0:02:59.9]} 2. Nf3 {[%clk 0:02:59.3]}
2... d6 {[%clk 0:02:59.6]} 3. d4 {[%clk 0:02:59.8]} 3... cxd4 {[%clk 0:03:00.5]}
4. Nxd4 {[%clk 0:03:00.4]} 4... Nf6 {[%clk 0:03:00.9]} 5. Nc3 {[%clk 0:03:01.1]}
5... g6 {[%clk 0:03:01.4]} 6. f3 {[%clk 0:03:01.6]} 6... Bg7 {[%clk 0:02:59.1]}
7. Be3 {[%clk 0:03:02.2]} 7... O-O {[%clk 0:02:59.3]} 8. Qd2 {[%clk 0:03:02.8]}
8... Nc6 {[%clk 0:02:59.8]} 9. O-O-O {[%clk 0:03:03.2]} 9... d5 {[%clk
0:03:00.2]} 10. exd5 {[%clk 0:03:04.1]} 10... Nxd5 {[%clk 0:03:00.1]} 11. Nxc6
{[%clk 0:03:04.3]} 11... bxc6 {[%clk 0:03:00.7]} 12. Bd4 {[%clk 0:03:05]} 12...
e5 {[%clk 0:03:01.4]} 13. Bc5 {[%clk 0:03:03.4]} 13... Re8 {[%clk 0:03:02]} 14.
Ne4 {[%clk 0:03:02.8]} 14... Qc7 {[%clk 0:02:59.5]} 15. h4 {[%clk 0:02:59.7]}
15... f5 {[%clk 0:02:59.4]} 16. Nd6 {[%clk 0:02:47.3]} 16... Rd8 {[%clk
0:02:58.4]} 17. Nxc8 {[%clk 0:02:41.5]} 17... Raxc8 {[%clk 0:02:59.3]} 18. Bc4
{[%clk 0:02:38.4]} 18... h5 {[%clk 0:02:59.1]} 19. g4 {[%clk 0:02:19.5]} 19...
Kh7 {[%clk 0:02:41.6]} 20. Kb1 {[%clk 0:01:58.5]} 20... e4 {[%clk 0:02:35]} 21.
Qe1 {[%clk 0:01:24.5]} 21... Rb8 {[%clk 0:02:14]} 22. Bb3 {[%clk 0:01:20.2]}
22... fxg4 {[%clk 0:02:02.7]} 23. fxg4 {[%clk 0:01:12.8]} 23... Nf6 {[%clk
0:01:08.7]} 24. Rxd8 {[%clk 0:00:57.9]} 24... Rxd8 {[%clk 0:01:05.8]} 25. gxh5
{[%clk 0:00:55]} 25... Nxh5 {[%clk 0:01:02.1]} 26. Rg1 {[%clk 0:00:49.6]} 26...
Qe5 {[%clk 0:00:58.9]} 27. Be3 {[%clk 0:00:35.5]} 27... Qxb2# {[%clk 0:00:58.2]}
0-1

[Event "Early-Titled-Tuesday-Blitz-October-17-2023"]
[Site "Chess.com"]
[Date "2023.10.17"]
[Round "11"]
[White "SashaKuzhilniy"]
[Black "CristianS27"]
[Result "1-0"]
[WhiteElo "2641"]
[BlackElo "2519"]
[TimeControl "180+1"]
[EndTime "10:08:22 PDT"]
[Termination "SashaKuzhilniy won by resignation"]

1. b3 {[%clk 0:03:00.9]} 1... e5 {[%clk 0:02:59.7]} 2. Bb2 {[%clk 0:03:01.7]}
2... Nc6 {[%clk 0:03:00.3]} 3. e3 {[%clk 0:03:01.9]} 3... Nf6 {[%clk 0:03:00.9]}
4. c4 {[%clk 0:03:01.7]} 4... d5 {[%clk 0:02:55.6]} 5. cxd5 {[%clk 0:03:02.6]}
5... Nxd5 {[%clk 0:02:56.2]} 6. a3 {[%clk 0:03:02]} 6... Bd6 {[%clk 0:02:55.6]}
7. Qc2 {[%clk 0:03:01.2]} 7... O-O {[%clk 0:02:55.2]} 8. Nf3 {[%clk 0:03:00.8]}
8... Re8 {[%clk 0:02:51.7]} 9. d3 {[%clk 0:03:00.9]} 9... a5 {[%clk 0:02:40.4]}
10. Nbd2 {[%clk 0:03:00.6]} 10... Nd4 {[%clk 0:02:25]} 11. exd4 {[%clk
0:02:53.9]} 11... exd4+ {[%clk 0:02:25.9]} 12. Kd1 {[%clk 0:02:52.1]} 12... Qe7
{[%clk 0:02:19.9]} 13. Ne4 {[%clk 0:02:46.4]} 13... f5 {[%clk 0:02:19.1]} 14.
Nxd6 {[%clk 0:02:45.2]} 14... Qxd6 {[%clk 0:02:10]} 15. Bxd4 {[%clk 0:02:36.3]}
15... Ra6 {[%clk 0:02:00.5]} 16. Bc5 {[%clk 0:01:41.1]} 16... Qf6 {[%clk
0:01:50.5]} 17. Bd4 {[%clk 0:01:34.5]} 17... Qd6 {[%clk 0:01:50.1]} 18. Be2
{[%clk 0:01:27.7]} 18... Rc6 {[%clk 0:01:49.3]} 19. Qb2 {[%clk 0:01:27.6]} 19...
Nf4 {[%clk 0:01:36.8]} 20. Re1 {[%clk 0:01:24.5]} 20... Nxg2 {[%clk 0:01:36.5]}
21. Rg1 {[%clk 0:01:24.3]} 21... Nf4 {[%clk 0:01:31.5]} 22. Rxg7+ {[%clk
0:01:23.8]} 22... Kf8 {[%clk 0:01:32.1]} 23. Bf1 {[%clk 0:01:07.6]} 23... Be6
{[%clk 0:00:51.2]} 24. Rxh7 {[%clk 0:00:50.6]} 24... Qd5 {[%clk 0:00:27.7]} 25.
Bc5+ {[%clk 0:00:46.3]} 1-0

[Event "Early-Titled-Tuesday-Blitz-October-17-2023"]
[Site "Chess.com"]
[Date "2023.10.17"]
[Round "11"]
[White "Lion-Al-Messi"]
[Black "Hovik_Hayrapetyan"]
[Result "0-1"]
[WhiteElo "2666"]
[BlackElo "2798"]
[TimeControl "180+1"]
[EndTime "10:08:26 PDT"]
[Termination "Hovik_Hayrapetyan won by resignation"]

1. e4 {[%clk 0:03:00.9]} 1... c5 {[%clk 0:02:59.8]} 2. Nf3 {[%clk 0:03:01.1]}
2... d6 {[%clk 0:03:00.2]} 3. d4 {[%clk 0:03:01.6]} 3... cxd4 {[%clk 0:03:01.1]}
4. Nxd4 {[%clk 0:03:02.3]} 4... Nf6 {[%clk 0:03:01.6]} 5. Nc3 {[%clk 0:03:02.7]}
5... a6 {[%clk 0:03:02.3]} 6. h3 {[%clk 0:03:03.3]} 6... e5 {[%clk 0:03:02.2]}
7. Nde2 {[%clk 0:03:03.4]} 7... h5 {[%clk 0:03:02.3]} 8. Bg5 {[%clk 0:03:03.2]}
8... Be6 {[%clk 0:03:01]} 9. g3 {[%clk 0:03:03.2]} 9... Nbd7 {[%clk 0:03:00.7]}
10. a4 {[%clk 0:03:03.1]} 10... Rc8 {[%clk 0:02:59.5]} 11. Bg2 {[%clk
0:03:02.8]} 11... Qc7 {[%clk 0:02:59.6]} 12. b3 {[%clk 0:03:02.2]} 12... Be7
{[%clk 0:02:57]} 13. O-O {[%clk 0:03:01.4]} 13... O-O {[%clk 0:01:46.1]} 14. f4
{[%clk 0:02:59.5]} 14... exf4 {[%clk 0:01:34.4]} 15. gxf4 {[%clk 0:02:59.2]}
15... Rfe8 {[%clk 0:01:08]} 16. f5 {[%clk 0:02:56.9]} 16... Nf8 {[%clk
0:01:08.3]} 17. fxe6 {[%clk 0:02:56.2]} 17... Qc5+ {[%clk 0:01:08.3]} 18. Qd4
{[%clk 0:02:45.1]} 18... Qxg5 {[%clk 0:01:07.4]} 19. exf7+ {[%clk 0:02:44.1]}
19... Kxf7 {[%clk 0:01:07.6]} 20. Nd5 {[%clk 0:02:28.2]} 20... Rxc2 {[%clk
0:01:07.1]} 21. Rf2 {[%clk 0:02:16.9]} 21... Ne6 {[%clk 0:01:03.5]} 22. Qd3
{[%clk 0:02:13.1]} 22... Qd2 {[%clk 0:00:46.2]} 23. Qf3 {[%clk 0:02:09.4]} 23...
Kg8 {[%clk 0:00:34.6]} 24. Raf1 {[%clk 0:01:55.6]} 24... Nd4 {[%clk 0:00:34.5]}
25. Nxf6+ {[%clk 0:01:46.1]} 25... Bxf6 {[%clk 0:00:33.5]} 26. Qxh5 {[%clk
0:01:46.4]} 26... Re5 {[%clk 0:00:29.8]} 27. Nf4 {[%clk 0:01:18.7]} 27... Qxf4
{[%clk 0:00:20.2]} 28. Qg6 {[%clk 0:01:17.5]} 28... Qg5 {[%clk 0:00:18.9]} 29.
Qxg5 {[%clk 0:01:07.1]} 29... Rxg5 {[%clk 0:00:19.8]} 30. Rxc2 {[%clk
0:01:07.5]} 30... Nxc2 {[%clk 0:00:20.7]} 31. h4 {[%clk 0:01:01.8]} 31... Rxg2+
{[%clk 0:00:19.4]} 0-1

[Event "Early-Titled-Tuesday-Blitz-October-17-2023"]
[Site "Chess.com"]
[Date "2023.10.17"]
[Round "11"]
[White "nelsi"]
[Black "Grossboss19"]
[Result "0-1"]
[WhiteElo "2307"]
[BlackElo "2493"]
[TimeControl "180+1"]
[EndTime "10:08:33 PDT"]
[Termination "Grossboss19 won by checkmate"]

1. e4 {[%clk 0:03:00]} 1... c6 {[%clk 0:02:55.2]} 2. d4 {[%clk 0:02:59.7]} 2...
d5 {[%clk 0:02:52.3]} 3. Nc3 {[%clk 0:02:59.6]} 3... dxe4 {[%clk 0:02:46.3]} 4.
Bc4 {[%clk 0:02:59.6]} 4... Nf6 {[%clk 0:02:40.3]} 5. f3 {[%clk 0:02:59.8]} 5...
exf3 {[%clk 0:02:30]} 6. Nxf3 {[%clk 0:03:00.7]} 6... e6 {[%clk 0:02:30.3]} 7.
O-O {[%clk 0:03:00]} 7... Be7 {[%clk 0:02:25.5]} 8. Qe1 {[%clk 0:02:50.9]} 8...
O-O {[%clk 0:02:22.8]} 9. Bd3 {[%clk 0:02:49.4]} 9... Nbd7 {[%clk 0:02:21]} 10.
Qh4 {[%clk 0:02:47.4]} 10... Re8 {[%clk 0:02:08.6]} 11. Be3 {[%clk 0:02:39.4]}
11... Nf8 {[%clk 0:02:06.7]} 12. Ng5 {[%clk 0:02:14.4]} 12... h6 {[%clk
0:01:47.8]} 13. Nxf7 {[%clk 0:02:07.8]} 13... Kxf7 {[%clk 0:01:46]} 14. Bxh6
{[%clk 0:02:06.5]} 14... gxh6 {[%clk 0:01:41.9]} 15. Qxh6 {[%clk 0:01:54.6]}
15... Qxd4+ {[%clk 0:01:40.4]} 16. Kh1 {[%clk 0:01:54.4]} 16... Qg4 {[%clk
0:00:52]} 17. Rf4 {[%clk 0:01:36.5]} 17... Qg7 {[%clk 0:00:43.4]} 18. Qh5+
{[%clk 0:01:23]} 18... Kg8 {[%clk 0:00:36.8]} 19. Rxf6 {[%clk 0:01:19]} 19...
Bxf6 {[%clk 0:00:37.4]} 20. Qxe8 {[%clk 0:01:19]} 20... Bxc3 {[%clk 0:00:37.6]}
21. bxc3 {[%clk 0:01:14.2]} 21... Qf7 {[%clk 0:00:35.2]} 22. Qd8 {[%clk
0:01:03.9]} 22... Qd7 {[%clk 0:00:30.7]} 23. Qg5+ {[%clk 0:00:57.9]} 23... Qg7
{[%clk 0:00:30.7]} 24. Qd8 {[%clk 0:00:55.2]} 24... b6 {[%clk 0:00:27.5]} 25.
Rf1 {[%clk 0:00:35.5]} 25... Bb7 {[%clk 0:00:26.7]} 26. Qh4 {[%clk 0:00:36.2]}
26... c5 {[%clk 0:00:24]} 27. Rf4 {[%clk 0:00:33.5]} 27... Qxg2# {[%clk
0:00:23.1]} 0-1

[Event "Early-Titled-Tuesday-Blitz-October-17-2023"]
[Site "Chess.com"]
[Date "2023.10.17"]
[Round "11"]
[White "mfwagnerpeixoto"]
[Black "Tagliata"]
[Result "1-0"]
[WhiteElo "2318"]
[BlackElo "2135"]
[TimeControl "180+1"]
[EndTime "10:08:35 PDT"]
[Termination "mfwagnerpeixoto won by resignation"]

1. e4 {[%clk 0:02:52.5]} 1... c5 {[%clk 0:03:00.4]} 2. Nf3 {[%clk 0:02:52]} 2...
Nc6 {[%clk 0:03:01.1]} 3. Bb5 {[%clk 0:02:51.6]} 3... e6 {[%clk 0:03:00.6]} 4.
O-O {[%clk 0:02:50.1]} 4... Nge7 {[%clk 0:03:00.1]} 5. Re1 {[%clk 0:02:50.3]}
5... Nd4 {[%clk 0:03:00.5]} 6. Nxd4 {[%clk 0:02:48.1]} 6... cxd4 {[%clk
0:03:01.4]} 7. c3 {[%clk 0:02:48.4]} 7... a6 {[%clk 0:03:01.2]} 8. Bf1 {[%clk
0:02:48.1]} 8... Nc6 {[%clk 0:03:01.7]} 9. cxd4 {[%clk 0:02:38.6]} 9... Nxd4
{[%clk 0:03:01.6]} 10. Nc3 {[%clk 0:02:38.9]} 10... Bc5 {[%clk 0:02:59.7]} 11.
d3 {[%clk 0:02:38.7]} 11... O-O {[%clk 0:02:59.3]} 12. Be3 {[%clk 0:02:38.9]}
12... e5 {[%clk 0:02:56.3]} 13. Nd5 {[%clk 0:02:37.6]} 13... d6 {[%clk
0:02:55.8]} 14. b4 {[%clk 0:02:35.9]} 14... Ba7 {[%clk 0:02:54.8]} 15. Rc1
{[%clk 0:02:35.2]} 15... Bd7 {[%clk 0:02:53.2]} 16. f4 {[%clk 0:02:23.3]} 16...
exf4 {[%clk 0:02:50.5]} 17. Nxf4 {[%clk 0:02:22]} 17... Rc8 {[%clk 0:02:45.2]}
18. Rxc8 {[%clk 0:02:20.9]} 18... Bxc8 {[%clk 0:02:45.3]} 19. Nd5 {[%clk
0:02:07.8]} 19... Be6 {[%clk 0:02:42.9]} 20. Nf4 {[%clk 0:02:05.5]} 20... Bd7
{[%clk 0:02:39.1]} 21. Nd5 {[%clk 0:01:46]} 21... Bc6 {[%clk 0:02:31.3]} 22. Nf4
{[%clk 0:01:37]} 22... Bb6 {[%clk 0:02:31.1]} 23. a4 {[%clk 0:01:35.3]} 23...
Ne6 {[%clk 0:02:30.5]} 24. Nxe6 {[%clk 0:01:24.5]} 24... fxe6 {[%clk 0:02:27.6]}
25. Qg4 {[%clk 0:01:13.8]} 25... Bxe3+ {[%clk 0:02:18.1]} 26. Rxe3 {[%clk
0:01:12.4]} 26... Qb6 {[%clk 0:02:18.2]} 27. Qxe6+ {[%clk 0:01:10.1]} 27... Kh8
{[%clk 0:02:17.9]} 28. Qh3 {[%clk 0:01:04.1]} 28... Bxa4 {[%clk 0:02:13.9]} 29.
g4 {[%clk 0:00:36.7]} 29... Qxb4 {[%clk 0:02:03.8]} 30. Rf3 {[%clk 0:00:34.7]}
30... Qd4+ {[%clk 0:02:02.3]} 31. Kg2 {[%clk 0:00:32]} 31... Qb2+ {[%clk
0:02:00.2]} 32. Kh1 {[%clk 0:00:25.2]} 32... Rxf3 {[%clk 0:01:54.9]} 33. Qxf3
{[%clk 0:00:26.1]} 33... Qf6 {[%clk 0:01:55.2]} 34. Qe2 {[%clk 0:00:21.2]} 34...
Bc6 {[%clk 0:01:53.2]} 35. Kg2 {[%clk 0:00:20.7]} 35... d5 {[%clk 0:01:53]} 36.
e5 {[%clk 0:00:18.5]} 36... d4+ {[%clk 0:01:53.2]} 37. Kg3 {[%clk 0:00:18.6]}
37... Qg5 {[%clk 0:01:51.1]} 38. e6 {[%clk 0:00:13.3]} 38... Kg8 {[%clk
0:01:43.6]} 39. Bg2 {[%clk 0:00:10.6]} 39... Bxg2 {[%clk 0:01:42.3]} 40. e7
{[%clk 0:00:08.1]} 1-0

[Event "Early-Titled-Tuesday-Blitz-October-17-2023"]
[Site "Chess.com"]
[Date "2023.10.17"]
[Round "11"]
[White "DarZay"]
[Black "KatakuriDono"]
[Result "1-0"]
[WhiteElo "2233"]
[BlackElo "2363"]
[TimeControl "180+1"]
[EndTime "10:08:38 PDT"]
[Termination "DarZay won by checkmate"]

1. e4 {[%clk 0:03:00.9]} 1... e5 {[%clk 0:02:59.9]} 2. Nf3 {[%clk 0:03:00.4]}
2... Nc6 {[%clk 0:03:00.3]} 3. Bc4 {[%clk 0:03:00.5]} 3... Nf6 {[%clk
0:03:00.2]} 4. d3 {[%clk 0:03:00.9]} 4... Be7 {[%clk 0:02:59.7]} 5. c3 {[%clk
0:03:01.3]} 5... O-O {[%clk 0:02:59.2]} 6. Bb3 {[%clk 0:03:01.6]} 6... d5 {[%clk
0:02:56.5]} 7. Qe2 {[%clk 0:02:59.7]} 7... a5 {[%clk 0:02:37.7]} 8. a4 {[%clk
0:02:57.9]} 8... d4 {[%clk 0:02:29.7]} 9. Nbd2 {[%clk 0:02:56.6]} 9... Bg4
{[%clk 0:02:25.8]} 10. h3 {[%clk 0:02:55.9]} 10... Bxf3 {[%clk 0:02:16.4]} 11.
Nxf3 {[%clk 0:02:55.2]} 11... Qd6 {[%clk 0:02:12.3]} 12. Nh4 {[%clk 0:02:52.5]}
12... g6 {[%clk 0:02:10.2]} 13. Bh6 {[%clk 0:02:51.4]} 13... Rfd8 {[%clk
0:02:08.8]} 14. Rd1 {[%clk 0:02:48.5]} 14... dxc3 {[%clk 0:02:05.9]} 15. bxc3
{[%clk 0:02:48.4]} 15... Qa3 {[%clk 0:01:48.4]} 16. Qa2 {[%clk 0:02:43.5]} 16...
Qxa2 {[%clk 0:01:48.4]} 17. Bxa2 {[%clk 0:02:43.5]} 17... Nxe4 {[%clk
0:01:48.1]} 18. Nxg6 {[%clk 0:02:29.8]} 18... hxg6 {[%clk 0:01:42.2]} 19. dxe4
{[%clk 0:02:29.3]} 19... Rxd1+ {[%clk 0:01:42.2]} 20. Kxd1 {[%clk 0:02:29.1]}
20... Rd8+ {[%clk 0:01:42.9]} 21. Ke2 {[%clk 0:02:28.6]} 21... g5 {[%clk
0:01:33.1]} 22. h4 {[%clk 0:02:28.6]} 22... gxh4 {[%clk 0:01:33.3]} 23. g3
{[%clk 0:02:23.7]} 23... hxg3 {[%clk 0:01:12.9]} 24. fxg3 {[%clk 0:02:23.7]}
24... Bf6 {[%clk 0:01:11.9]} 25. g4 {[%clk 0:02:22.3]} 25... Ne7 {[%clk
0:01:10]} 26. Rf1 {[%clk 0:02:15.8]} 26... Rd6 {[%clk 0:01:05.5]} 27. g5 {[%clk
0:02:15.6]} 27... Rb6 {[%clk 0:00:29.8]} 28. gxf6 {[%clk 0:02:06.8]} 28... Ng6
{[%clk 0:00:29]} 29. Bc4 {[%clk 0:01:58.7]} 29... Rb2+ {[%clk 0:00:28.2]} 30.
Kd3 {[%clk 0:01:58.4]} 30... Rh2 {[%clk 0:00:27.6]} 31. Be3 {[%clk 0:01:57.2]}
31... Rh3 {[%clk 0:00:26.1]} 32. Rg1 {[%clk 0:01:55]} 32... Kf8 {[%clk
0:00:23.1]} 33. Kd2 {[%clk 0:01:52.5]} 33... Rh2+ {[%clk 0:00:23.3]} 34. Be2
{[%clk 0:01:42.7]} 34... Ke8 {[%clk 0:00:20.3]} 35. c4 {[%clk 0:01:37.6]} 35...
Kd7 {[%clk 0:00:19.8]} 36. c5 {[%clk 0:01:36]} 36... Ke6 {[%clk 0:00:20.1]} 37.
Rf1 {[%clk 0:01:35]} 37... Nh4 {[%clk 0:00:17.2]} 38. Rf2 {[%clk 0:01:29.1]}
38... Rxf2 {[%clk 0:00:13.4]} 39. Bxf2 {[%clk 0:01:27.1]} 39... Ng2 {[%clk
0:00:14.3]} 40. Bf3 {[%clk 0:01:16.6]} 40... Nf4 {[%clk 0:00:13.2]} 41. Bh4
{[%clk 0:01:16.1]} 41... Ng6 {[%clk 0:00:12.2]} 42. Bg4# {[%clk 0:01:14.9]} 1-0

[Event "Early-Titled-Tuesday-Blitz-October-17-2023"]
[Site "Chess.com"]
[Date "2023.10.17"]
[Round "11"]
[White "wonderfultime"]
[Black "Witik"]
[Result "1-0"]
[WhiteElo "2978"]
[BlackElo "2821"]
[TimeControl "180+1"]
[EndTime "10:08:40 PDT"]
[Termination "wonderfultime won by resignation"]

1. d4 {[%clk 0:02:59.7]} 1... Nf6 {[%clk 0:03:00]} 2. Nf3 {[%clk 0:02:53.1]}
2... g6 {[%clk 0:03:00.1]} 3. Bg5 {[%clk 0:02:51.1]} 3... Bg7 {[%clk 0:03:00.3]}
4. c3 {[%clk 0:02:49.1]} 4... d5 {[%clk 0:02:59.3]} 5. Nbd2 {[%clk 0:02:47.7]}
5... O-O {[%clk 0:02:59.3]} 6. e3 {[%clk 0:02:48]} 6... Nbd7 {[%clk 0:02:59.5]}
7. Bd3 {[%clk 0:02:48.1]} 7... Re8 {[%clk 0:02:57.2]} 8. O-O {[%clk 0:02:48.4]}
8... e5 {[%clk 0:02:56.3]} 9. e4 {[%clk 0:02:48.6]} 9... exd4 {[%clk 0:02:46]}
10. cxd4 {[%clk 0:02:48.3]} 10... dxe4 {[%clk 0:02:41.2]} 11. Nxe4 {[%clk
0:02:48.3]} 11... h6 {[%clk 0:02:41.9]} 12. Qb3 {[%clk 0:02:48.4]} 12... Qe7
{[%clk 0:01:34]} 13. Rae1 {[%clk 0:02:43.3]} 13... Qf8 {[%clk 0:01:31.9]} 14.
Nxf6+ {[%clk 0:02:25.6]} 14... Nxf6 {[%clk 0:01:32]} 15. Bxf6 {[%clk 0:02:25.8]}
15... Bxf6 {[%clk 0:01:27.2]} 16. Bxg6 {[%clk 0:02:26.5]} 16... Be6 {[%clk
0:01:22.2]} 17. d5 {[%clk 0:02:23.3]} 17... Bd7 {[%clk 0:01:12.6]} 18. Bc2
{[%clk 0:02:15.2]} 18... b6 {[%clk 0:01:06.2]} 19. Nd2 {[%clk 0:01:55.3]} 19...
Qg7 {[%clk 0:01:04.2]} 20. Ne4 {[%clk 0:01:37.8]} 20... Bxb2 {[%clk 0:01:03.9]}
21. Re3 {[%clk 0:01:37.8]} 21... Be5 {[%clk 0:01:02.3]} 22. Kh1 {[%clk
0:01:32.9]} 22... Kh8 {[%clk 0:00:35.2]} 23. f4 {[%clk 0:01:31.4]} 23... Bd6
{[%clk 0:00:22.7]} 24. Rg3 {[%clk 0:01:23.7]} 24... Qd4 {[%clk 0:00:22.8]} 25.
Qf3 {[%clk 0:01:15.3]} 25... Rg8 {[%clk 0:00:04.9]} 26. Qh5 {[%clk 0:01:01.9]}
26... Rxg3 {[%clk 0:00:05.1]} 27. Qxh6+ {[%clk 0:00:58.3]} 27... Kg8 {[%clk
0:00:05.4]} 28. hxg3 {[%clk 0:00:59]} 28... Qg7 {[%clk 0:00:04.5]} 29. Nf6+
{[%clk 0:00:59.1]} 29... Kf8 {[%clk 0:00:04.8]} 30. Nxd7+ {[%clk 0:00:59.4]} 1-0